fUST/lending_fUST_20240714
["ID","MTS","AMOUNT","RATE_DAILY","PERIOD"]
[332096185,1720959050738,-500.0,0.00025753,2]
[332096186,1720959050748,-500.0,0.00025753,2]
[332096187,1720959050758,-947.59,0.00025753,2]
[332096188,1720959050767,-572.91,0.00025753,2]
[332096189,1720959050777,-635.50066819,0.00025753,2]
[332096190,1720959050786,-500.0,0.00025753,2]
[332096191,1720959050796,-500.0,0.00025753,2]
[332096192,1720959050806,-453.55026647,0.00025753,2]
[332096193,1720959050815,-500.0,0.00025753,2]
[332096194,1720959050824,-500.0,0.00025753,2]
[332096195,1720959050833,-200.0,0.00025753,2]
[332096196,1720959050847,-500.0,0.00025753,2]
[332096197,1720959050857,-500.0,0.00025753,2]
[332096198,1720959050867,-500.0,0.00025753,2]
[332096199,1720959050877,-500.0,0.00025753,2]
[332096200,1720959050887,-500.0,0.00025753,2]
[332096201,1720959050896,-500.0,0.00025753,2]
[332096202,1720959050906,-500.0,0.00025753,2]
[332096203,1720959050916,-565.81997238,0.00025753,2]
[332096204,1720959050925,-500.0,0.00025753,2]
[332096205,1720959050935,-655.198063,0.00025753,7]
[332096206,1720959050944,-182.815453,0.00025753,7]
[332096207,1720959050954,-655.198063,0.00025753,7]
[332096208,1720959050963,-182.815453,0.00025753,7]
[332096209,1720959050973,-500.0,0.00025753,2]
[332096210,1720959050982,-500.0,0.00025753,2]
[332096211,1720959050992,-500.0,0.00025753,2]
[332096212,1720959051001,-575.67,0.00025753,2]
[332096213,1720959051010,-500.0,0.00025753,2]
[332096214,1720959051020,-500.0,0.00025753,2]
[332096215,1720959051030,-500.0,0.00025753,2]
[332096216,1720959051039,-500.0,0.00025753,2]
[332096217,1720959051049,-500.0,0.00025753,2]
[332096218,1720959051058,-715.66,0.00025753,2]
[332096219,1720959051067,-500.0,0.00025753,2]
[332096220,1720959051077,-4413.96,0.00025753,2]
[332096221,1720959051088,-474.29182579,0.00025753,2]
[332096222,1720959051098,-500.0,0.00025753,2]
[332096223,1720959051108,-221.08492536,0.00025753,2]
[332096224,1720959051117,-500.0,0.00025753,2]
[332096225,1720959051128,-500.0,0.00025753,2]
[332096226,1720959051137,-1141.77,0.00025753,2]
[332096227,1720959051147,-500.0,0.00025753,2]
[332096228,1720959051157,-500.0,0.00025753,2]
[332096229,1720959051167,-500.0,0.00025753,2]
[332096230,1720959051177,-500.0,0.00025753,2]
[332096231,1720959051186,-500.0,0.00025753,2]
[332096232,1720959051197,-500.0,0.00025753,2]
[332096233,1720959051215,-500.0,0.00025753,2]
[332096234,1720959051224,-487.06685843,0.00025753,2]
[332096235,1720959051234,-500.0,0.00025753,2]
[332096236,1720959051246,-509.00051779,0.00025753,2]
[332096237,1720959051256,-500.0,0.00025753,2]
[332096238,1720959051265,-500.0,0.00025753,2]
[332096239,1720959051347,-500.0,0.00025753,2]
[332096240,1720959051357,-500.0,0.00025753,2]
[332096241,1720959051367,-500.0,0.00025753,2]
[332096242,1720959051376,-509.23,0.00025753,4]
[332096243,1720959051386,-500.0,0.00025753,2]
[332096244,1720959051396,-500.0,0.00025753,2]
[332096245,1720959051406,-9077.84,0.00025753,2]
[332096246,1720959051417,-152.11310169,0.00025753,2]
[332096247,1720959051427,-500.0,0.00025753,2]
[332096248,1720959051436,-500.0,0.00025753,2]
[332096249,1720959051445,-500.0,0.00025753,2]
[332096250,1720959051455,-500.0,0.00025753,2]
[332096251,1720959051464,-500.0,0.00025753,2]
[332096252,1720959051474,-624.23983785,0.00025753,2]
[332096253,1720959051483,-500.0,0.00025753,2]
[332096254,1720959051492,-1369.79,0.00025753,2]
[332096255,1720959051502,-500.0,0.00025753,2]
[332096256,1720959051512,-500.0,0.00025753,2]
[332096257,1720959051522,-150.112233,0.000259,10]
[332096258,1720959051531,-260.62534725,0.00025902,2]
[332096259,1720959051541,-150.112233,0.00026,7]
[332096260,1720959051551,-3019.77192102,0.00026,2]
[332096261,1720959051561,-2705.16686906,0.00026017,3]
[332096262,1720959051571,-866.32,0.00026027,2]
[332096263,1720959051581,-500.0,0.00026027,2]
[332096264,1720959051593,-500.0,0.00026027,2]
[332096265,1720959051602,-500.0,0.00026027,2]
[332096266,1720959051611,-500.0,0.00026027,3]
[332096267,1720959051621,-500.0,0.00026027,3]
[332096268,1720959051631,-500.0,0.00026027,2]
[332096269,1720959051640,-504.16,0.00026027,2]
[332096270,1720959051651,-947.59,0.00026027,2]
[332096271,1720959051661,-572.91,0.00026027,2]
[332096272,1720959051671,-500.0,0.00026027,2]
[332096273,1720959051680,-500.0,0.00026027,2]
[332096274,1720959051690,-500.0,0.00026027,2]
[332096275,1720959051700,-500.0,0.00026027,2]
[332096276,1720959051710,-200.0,0.00026027,2]
[332096277,1720959051723,-500.0,0.00026027,2]
[332096278,1720959051733,-151.0,0.00026027,7]
[332096279,1720959051743,-500.0,0.00026027,2]
[332096280,1720959051754,-630.6,0.00026027,2]
[332096281,1720959051763,-500.0,0.00026027,2]
[332096282,1720959051772,-500.0,0.00026027,2]
[332096283,1720959051782,-500.0,0.00026027,2]
[332096284,1720959051792,-575.67,0.00026027,2]
[332096285,1720959051802,-500.0,0.00026027,2]
[332096286,1720959051812,-500.0,0.00026027,2]
[332096287,1720959051821,-260.12514962,0.00026027,2]
[332096288,1720959051830,-500.0,0.00026027,2]
[332096289,1720959051843,-715.66,0.00026027,2]
[332096290,1720959051854,-500.0,0.00026027,2]
[332096291,1720959051864,-4413.96,0.00026027,2]
[332096292,1720959051874,-500.0,0.00026027,2]
[332096293,1720959051884,-500.0,0.00026027,2]
[332096294,1720959051894,-500.0,0.00026027,2]
[332096295,1720959051905,-1141.77,0.00026027,2]
[332096296,1720959051916,-500.0,0.00026027,2]
[332096297,1720959051927,-500.0,0.00026027,2]
[332096298,1720959051937,-500.0,0.00026027,2]
[332096299,1720959051949,-500.0,0.00026027,2]
[332096300,1720959051960,-500.0,0.00026027,2]
[332096301,1720959051969,-500.0,0.00026027,2]
[332096302,1720959051978,-500.0,0.00026027,2]
[332096303,1720959051988,-500.0,0.00026027,2]
[332096304,1720959051998,-500.0,0.00026027,2]
[332096305,1720959052007,-509.23,0.00026027,4]
[332096306,1720959052017,-500.0,0.00026027,2]
[332096307,1720959052028,-500.0,0.00026027,2]
[332096308,1720959052037,-9077.84,0.00026027,2]
[332096309,1720959052047,-446.554885,0.00026027,7]
[332096310,1720959052058,-500.0,0.00026027,2]
[332096311,1720959052067,-446.554885,0.00026027,7]
[332096312,1720959052077,-500.0,0.00026027,2]
[332096313,1720959052087,-585.741775,0.00026027,7]
[332096314,1720959052097,-332.28812319,0.00026027,2]
[332096315,1720959052107,-585.741775,0.00026027,7]
[332096316,1720959052119,-534.03580001,0.00026027,2]
[332096317,1720959052129,-500.0,0.00026027,2]
[332096318,1720959052140,-151.0,0.00026027,7]
[332096319,1720959052152,-1369.79,0.00026027,2]
[332096320,1720959052162,-240.335117,0.00026027,7]
[332096321,1720959052172,-240.335117,0.00026027,7]
[332096322,1720959052183,-618.428539,0.00026027,7]
[332096323,1720959052198,-618.428539,0.00026027,7]
[332096324,1720959052209,-500.0,0.00026027,2]
[332096325,1720959052220,-162.0,0.00026052,2]
[332096326,1720959052231,-2705.16686906,0.00026291,3]
[332096327,1720959052242,-866.32,0.00026301,2]
[332096328,1720959052253,-500.0,0.00026301,2]
[332096329,1720959052262,-500.0,0.00026301,2]
[332096330,1720959052273,-500.0,0.00026301,2]
[332096331,1720959052282,-500.0,0.00026301,2]
[332096332,1720959052291,-947.59,0.00026301,2]
[332096333,1720959052300,-572.91,0.00026301,2]
[332096334,1720959052309,-500.0,0.00026301,2]
[332096335,1720959052318,-151.0,0.00026301,7]
[332096336,1720959052328,-500.0,0.00026301,2]
[332096337,1720959052337,-151.0,0.00026301,7]
[332096338,1720959052346,-151.0,0.00026301,7]
[332096339,1720959052355,-500.0,0.00026301,2]
[332096340,1720959052365,-553.31966395,0.00026301,2]
[332096341,1720959052374,-500.0,0.00026301,2]
[332096342,1720959052383,-500.0,0.00026301,2]
[332096343,1720959052393,-575.67,0.00026301,2]
[332096344,1720959052402,-500.0,0.00026301,2]
[332096345,1720959052413,-315.1860659,0.00026301,2]
[332096346,1720959052423,-184.87929523,0.00026301,2]
[332096347,1720959052432,-715.66,0.00026301,2]
[332096348,1720959052441,-607.19484177,0.00026301,2]
[332096349,1720959052451,-4413.96,0.00026301,2]
[332096350,1720959052460,-500.0,0.00026301,2]
[332096351,1720959052470,-1141.77,0.00026301,2]
[332096352,1720959052480,-151.0,0.00026301,7]
[332096353,1720959052489,-151.0,0.00026301,7]
[332096354,1720959052499,-151.0,0.00026301,7]
[332096355,1720959052509,-151.0,0.00026301,2]
[332096356,1720959052518,-500.0,0.00026301,2]
[332096357,1720959052528,-151.0,0.00026301,7]
[332096358,1720959052537,-505.7,0.00026301,2]
[332096359,1720959052546,-500.0,0.00026301,2]
[332096360,1720959052556,-500.0,0.00026301,2]
[332096361,1720959052565,-254.813357,0.00026301,7]
[332096362,1720959052575,-254.813357,0.00026301,7]
[332096363,1720959052584,-246.10631948,0.00026301,2]
[332096364,1720959052596,-722.443147,0.00026301,7]
[332096365,1720959052606,-722.443147,0.00026301,7]
[332096366,1720959052615,-185.930815,0.00026301,7]
[332096367,1720959052624,-185.930815,0.00026301,7]
[332096368,1720959052633,-154.766639,0.00026301,7]
[332096369,1720959052643,-500.0,0.00026301,2]
[332096370,1720959052652,-204.600451,0.00026301,7]
[332096371,1720959052661,-151.0,0.00026301,7]
[332096372,1720959052670,-204.600451,0.00026301,7]
[332096373,1720959052679,-151.0,0.00026301,7]
[332096374,1720959052689,-500.0,0.00026301,2]
[332096375,1720959052698,-316.304674,0.00026301,7]
[332096376,1720959052707,-316.304674,0.00026301,7]
[332096377,1720959052717,-509.23,0.00026301,4]
[332096378,1720959052726,-500.0,0.00026301,2]
[332096379,1720959052735,-500.0,0.00026301,2]
[332096380,1720959052745,-9077.84,0.00026301,2]
[332096381,1720959052754,-500.0,0.00026301,2]
[332096382,1720959052764,-500.0,0.00026301,2]
[332096383,1720959052773,-500.0,0.00026301,2]
[332096384,1720959052783,-1369.79,0.00026301,2]
[332096385,1720959052851,-500.0,0.00026301,2]
[332096386,1720959052866,-811.42567923,0.00026341,2]
[332096387,1720959052875,-503.0,0.00026391,2]
[332096388,1720959052884,-3000.0,0.000265,2]
[332096389,1720959052893,-3000.0,0.0002651,2]
[332096390,1720959052902,-3000.0,0.0002652,2]
[332096391,1720959052911,-3000.0,0.0002653,2]
[332096392,1720959052921,-162.0,0.00026536,2]
[332096393,1720959052930,-3000.0,0.0002654,2]
[332096394,1720959052941,-151.0,0.0002654,7]
[332096395,1720959052950,-281.003373,0.0002654,7]
[332096396,1720959052960,-281.003373,0.0002654,7]
[332096397,1720959052969,-151.0,0.0002654,7]
[332096398,1720959052978,-224.882043,0.0002654,7]
[332096399,1720959052988,-224.882043,0.0002654,7]
[332096400,1720959052998,-2705.16686906,0.0002654,3]
[332096401,1720959053007,-3000.0,0.0002655,2]
[332096402,1720959053017,-4687.638011,0.0002656,2]
[332096403,1720959053026,-208.08631229,0.00026574,2]
[332096404,1720959053035,-154.54409492,0.00026574,2]
[332096405,1720959053045,-189.4315508,0.00026575,2]
[332096406,1720959053054,-428.71334484,0.00026575,2]
[332096407,1720959053063,-726.5695421,0.00026575,30]
[332096408,1720959053073,-225.94652212,0.00026575,2]
[332096409,1720959053083,-866.32,0.00026575,2]
[332096410,1720959053094,-500.0,0.00026575,2]
[332096411,1720959053103,-500.0,0.00026575,2]
[332096412,1720959053112,-500.0,0.00026575,2]
[332096413,1720959053122,-500.0,0.00026575,2]
[332096414,1720959053131,-947.59,0.00026575,2]
[332096415,1720959053140,-572.91,0.00026575,2]
[332096416,1720959053149,-500.0,0.00026575,2]
[332096417,1720959053159,-500.0,0.00026575,2]
[332096418,1720959053168,-500.0,0.00026575,2]
[332096419,1720959053177,-500.0,0.00026575,2]
[332096420,1720959053188,-500.0,0.00026575,2]
[332096421,1720959053200,-575.67,0.00026575,2]
[332096422,1720959053209,-500.0,0.00026575,2]
[332096423,1720959053218,-715.66,0.00026575,2]
[332096424,1720959053227,-4413.96,0.00026575,2]
[332096425,1720959053237,-500.0,0.00026575,2]
[332096426,1720959053246,-1141.77,0.00026575,2]
[332096427,1720959053256,-591.63205234,0.00026575,2]
[332096428,1720959053266,-500.0,0.00026575,2]
[332096429,1720959053278,-500.0,0.00026575,2]
[332096430,1720959053287,-500.0,0.00026575,2]
[332096431,1720959053297,-509.23,0.00026575,4]
[332096432,1720959053306,-500.0,0.00026575,2]
[332096433,1720959053316,-500.0,0.00026575,2]
[332096434,1720959053325,-9077.84,0.00026575,2]
[332096435,1720959053335,-500.0,0.00026575,2]
[332096436,1720959053345,-500.0,0.00026575,2]
[332096437,1720959053355,-1369.79,0.00026575,2]
[332096438,1720959053365,-200.0,0.00026738,2]
[332096439,1720959053375,-167.42203445,0.0002682,2]
[332096440,1720959053384,-2705.16686906,0.00026839,3]
[332096441,1720959053394,-304.6409205,0.00026848,2]
[332096442,1720959053403,-866.32,0.00026849,2]
[332096443,1720959053413,-500.0,0.00026849,2]
[332096444,1720959053423,-500.0,0.00026849,2]
[332096445,1720959053432,-619.59,0.00026849,2]
[332096446,1720959053441,-500.0,0.00026849,2]
[332096447,1720959053451,-947.59,0.00026849,2]
[332096448,1720959053460,-572.91,0.00026849,2]
[332096449,1720959053469,-500.0,0.00026849,2]
[332096450,1720959053478,-646.42797551,0.00026849,2]
[332096451,1720959053487,-500.0,0.00026849,2]
[332096452,1720959053497,-655.198063,0.00026849,7]
[332096453,1720959053506,-182.815453,0.00026849,7]
[332096454,1720959053515,-655.198063,0.00026849,7]
[332096455,1720959053524,-182.815453,0.00026849,7]
[332096456,1720959053534,-500.0,0.00026849,2]
[332096457,1720959053543,-500.0,0.00026849,2]
[332096458,1720959053553,-575.67,0.00026849,2]
[332096459,1720959053564,-500.0,0.00026849,2]
[332096460,1720959053573,-715.66,0.00026849,2]
[332096461,1720959053583,-4413.96,0.00026849,2]
[332096462,1720959053594,-500.0,0.00026849,2]
[332096463,1720959053603,-1141.77,0.00026849,2]
[332096464,1720959053613,-648.55804055,0.00026849,2]
[332096465,1720959053622,-620.2852694,0.00026849,2]
[332096466,1720959053631,-500.0,0.00026849,2]
[332096467,1720959053641,-509.23,0.00026849,4]
[332096468,1720959053651,-500.0,0.00026849,2]
[332096469,1720959053660,-500.0,0.00026849,2]
[332096470,1720959053669,-9077.84,0.00026849,2]
[332096471,1720959053678,-500.0,0.00026849,2]
[332096472,1720959053688,-500.0,0.00026849,2]
[332096473,1720959053697,-1369.79,0.00026849,2]
[332096474,1720959053706,-151.0,0.00026849,7]
[332096475,1720959053715,-151.0,0.00026849,7]
[332096476,1720959053724,-158.28553448,0.00026854,2]
[332096477,1720959053735,-200.0,0.000269,2]
[332096478,1720959053746,-380.06899138,0.0002697,2]
[332096479,1720959053755,-1669.04185097,0.00027,4]
[332096480,1720959053764,-1057.70984187,0.00027,15]
[332096481,1720959053773,-380.06899138,0.00027001,2]
[332096482,1720959053785,-162.0,0.00027021,2]
[332096483,1720959053795,-929.57278054,0.00027072,2]
[332096484,1720959053804,-150.112233,0.000271,6]
[332096485,1720959053815,-200.804126,0.00027113,7]
[332096486,1720959053827,-446.554885,0.00027113,7]
[332096487,1720959053839,-446.554885,0.00027113,7]
[332096488,1720959053849,-585.741775,0.00027113,7]
[332096489,1720959053861,-585.741775,0.00027113,7]
[332096490,1720959053871,-151.0,0.00027113,7]
[332096491,1720959053880,-618.428539,0.00027113,7]
[332096492,1720959053890,-618.428539,0.00027113,7]
[332096493,1720959053900,-2705.16686906,0.00027113,3]
[332096494,1720959053909,-5479.31990683,0.00027123,5]
[332096495,1720959053918,-866.32,0.00027123,2]
[332096496,1720959053928,-151.0,0.00027123,7]
[332096497,1720959053937,-500.0,0.00027123,2]
[332096498,1720959053947,-500.0,0.00027123,2]
[332096499,1720959053957,-276.56657518,0.00027123,2]
[332096500,1720959053966,-947.59,0.00027123,2]
[332096501,1720959053976,-572.91,0.00027123,2]
[332096502,1720959053986,-500.0,0.00027123,2]
[332096503,1720959053996,-151.0,0.00027123,7]
[332096504,1720959054007,-151.0,0.00027123,7]
[332096505,1720959054017,-151.0,0.00027123,7]
[332096506,1720959054027,-500.0,0.00027123,2]
[332096507,1720959054039,-500.0,0.00027123,2]
[332096508,1720959054050,-500.0,0.00027123,2]
[332096509,1720959054059,-575.67,0.00027123,2]
[332096510,1720959054069,-500.0,0.00027123,2]
[332096511,1720959054078,-715.66,0.00027123,2]
[332096512,1720959054090,-4413.96,0.00027123,2]
[332096513,1720959054099,-500.0,0.00027123,2]
[332096514,1720959054110,-1141.77,0.00027123,2]
[332096515,1720959054120,-722.443147,0.00027123,7]
[332096516,1720959054130,-722.443147,0.00027123,7]
[332096517,1720959054139,-185.930815,0.00027123,7]
[332096518,1720959054150,-185.930815,0.00027123,7]
[332096519,1720959054160,-204.600451,0.00027123,7]
[332096520,1720959054229,-151.0,0.00027123,7]
[332096521,1720959054242,-204.600451,0.00027123,7]
[332096522,1720959054253,-151.0,0.00027123,7]
[332096523,1720959054262,-500.0,0.00027123,2]
[332096524,1720959054271,-316.304674,0.00027123,7]
[332096525,1720959054283,-316.304674,0.00027123,7]
[332096526,1720959054293,-509.23,0.00027123,4]
[332096527,1720959054303,-500.0,0.00027123,2]
[332096528,1720959054312,-258.24114799,0.00027123,2]
[332096529,1720959054322,-9077.84,0.00027123,2]
[332096530,1720959054332,-500.0,0.00027123,2]
[332096531,1720959054342,-500.0,0.00027123,2]
[332096532,1720959054352,-1369.79,0.00027123,2]
[332096533,1720959054361,-240.335117,0.00027123,7]
[332096534,1720959054371,-240.335117,0.00027123,7]
[332096535,1720959054380,-166.4749042,0.00027123,2]
[332096536,1720959054389,-159.54345515,0.00027143,2]
[332096537,1720959054399,-160.22197401,0.00027157,2]
[332096538,1720959054410,-929.57278054,0.0002716,2]
[332096539,1720959054419,-894.05585834,0.00027184,2]
[332096540,1720959054429,-177.26682605,0.00027184,2]
[332096541,1720959054439,-191.27347695,0.00027184,2]
[332096542,1720959054449,-287.14415021,0.00027194,2]
[332096543,1720959054459,-154.96683818,0.00027194,2]
[332096544,1720959054468,-750.0,0.00027195,2]
[332096545,1720959054478,-273.036044,0.00027195,2]
[332096546,1720959054490,-929.57278054,0.000272,2]
[332096547,1720959054499,-164.4162941,0.00027296,2]
[332096548,1720959054508,-1407.0,0.00027347,2]
[332096549,1720959054519,-2705.16686906,0.00027387,3]
[332096550,1720959054530,-223.71703034,0.0002739,2]
[332096551,1720959054541,-866.32,0.00027397,2]
[332096552,1720959054552,-500.0,0.00027397,2]
[332096553,1720959054562,-500.0,0.00027397,2]
[332096554,1720959054571,-947.59,0.00027397,2]
[332096555,1720959054582,-572.91,0.00027397,2]
[332096556,1720959054592,-500.0,0.00027397,2]
[332096557,1720959054602,-500.0,0.00027397,2]
[332096558,1720959054611,-500.0,0.00027397,2]
[332096559,1720959054621,-500.0,0.00027397,2]
[332096560,1720959054631,-500.0,0.00027397,2]
[332096561,1720959054642,-500.0,0.00027397,2]
[332096562,1720959054652,-500.0,0.00027397,2]
[332096563,1720959054661,-500.0,0.00027397,2]
[332096564,1720959054671,-500.0,0.00027397,2]
[332096565,1720959054680,-500.0,0.00027397,2]
[332096566,1720959054689,-357.70365407,0.00027397,2]
[332096567,1720959054698,-500.0,0.00027397,2]
[332096568,1720959054708,-500.0,0.00027397,2]
[332096569,1720959054717,-500.0,0.00027397,2]
[332096570,1720959054726,-575.67,0.00027397,2]
[332096571,1720959054735,-500.0,0.00027397,2]
[332096572,1720959054744,-281.003373,0.00027397,7]
[332096573,1720959054753,-281.003373,0.00027397,7]
[332096574,1720959054763,-715.66,0.00027397,2]
[332096575,1720959054772,-260.863233,0.00027397,7]
[332096576,1720959054782,-4413.96,0.00027397,2]
[332096577,1720959054791,-224.882043,0.00027397,7]
[332096578,1720959054800,-224.882043,0.00027397,7]
[332096579,1720959054809,-1141.77,0.00027397,2]
[332096580,1720959054819,-151.0,0.00027397,7]
[332096581,1720959054828,-151.0,0.00027397,7]
[332096582,1720959054839,-151.0,0.00027397,7]
[332096583,1720959054848,-151.0,0.00027397,2]
[332096584,1720959054857,-151.0,0.00027397,7]
[332096585,1720959054867,-254.813357,0.00027397,7]
[332096586,1720959054876,-254.813357,0.00027397,7]
[332096587,1720959054886,-500.0,0.00027397,2]
[332096588,1720959054897,-509.23,0.00027397,4]
[332096589,1720959054909,-500.0,0.00027397,2]
[332096590,1720959054922,-9077.84,0.00027397,2]
[332096591,1720959054934,-500.0,0.00027397,2]
[332096592,1720959054945,-500.0,0.00027397,2]
[332096593,1720959054955,-1369.79,0.00027397,2]
[332096594,1720959054965,-196.0915281,0.00027397,120]
[332096595,1720959054974,-151.0,0.00027397,2]
[332096596,1720959054984,-151.0,0.00027397,2]
[332096597,1720959054993,-154.55950541,0.00027399,2]
[332096598,1720959055003,-175.5061073,0.000274,2]
[332096599,1720959055012,-150.183,0.00027414,2]
[332096600,1720959055021,-150.0,0.00027414,2]
[332096601,1720959055031,-150.0,0.00027414,2]
[332096602,1720959055041,-289.426,0.00027414,2]
[332096603,1720959055050,-152.579321,0.00027473,7]
[332096604,1720959055059,-151.0,0.00027473,4]
[332096605,1720959055069,-321.279376,0.00027473,7]
[332096606,1720959055078,-321.279376,0.00027473,7]
[332096607,1720959055088,-151.0,0.00027473,7]
[332096608,1720959055098,-3200.0,0.00027473,2]
[332096609,1720959055107,-162.0,0.00027505,2]
[332096610,1720959055118,-223.71703034,0.00027507,2]
[332096611,1720959055127,-150.0,0.00027521,2]
[332096612,1720959055137,-150.711,0.00027521,2]
[332096613,1720959055148,-151.0,0.00027534,7]
[332096614,1720959055158,-929.57278054,0.00027582,2]
[332096615,1720959055167,-380.06899138,0.00027587,2]
[332096616,1720959055176,-866.32,0.00027671,2]
[332096617,1720959055186,-500.0,0.00027671,2]
[332096618,1720959055199,-500.0,0.00027671,2]
[332096619,1720959055210,-947.59,0.00027671,2]
[332096620,1720959055220,-572.91,0.00027671,2]
[332096621,1720959055230,-500.0,0.00027671,2]
[332096622,1720959055241,-249.47730886,0.00027671,2]
[332096623,1720959055250,-500.0,0.00027671,2]
[332096624,1720959055260,-575.67,0.00027671,2]
[332096625,1720959055278,-500.0,0.00027671,2]
[332096626,1720959055292,-715.66,0.00027671,2]
[332096627,1720959055301,-4413.96,0.00027671,2]
[332096628,1720959055311,-1141.77,0.00027671,2]
[332096629,1720959055321,-500.0,0.00027671,2]
[332096630,1720959055332,-509.23,0.00027671,4]
[332096631,1720959055343,-500.0,0.00027671,2]
[332096632,1720959055353,-9077.84,0.00027671,2]
[332096633,1720959055364,-500.0,0.00027671,2]
[332096634,1720959055374,-500.0,0.00027671,2]
[332096635,1720959055384,-1369.79,0.00027671,2]
[332096636,1720959055393,-380.06899138,0.00027721,2]
[332096637,1720959055403,-380.06899138,0.00027736,2]
[332096638,1720959055413,-929.57278054,0.00027758,2]
[332096639,1720959055422,-929.57278054,0.00027763,2]
[332096640,1720959055432,-929.57278054,0.00027837,2]
[332096641,1720959055442,-2705.16686906,0.00027935,3]
[332096642,1720959055452,-866.32,0.00027945,2]
[332096643,1720959055462,-500.0,0.00027945,2]
[332096644,1720959055471,-187.60178607,0.00027945,2]
[332096645,1720959055580,-947.59,0.00027945,2]
[332096646,1720959055591,-572.91,0.00027945,2]
[332096647,1720959055601,-500.0,0.00027945,2]
[332096648,1720959055611,-500.0,0.00027945,2]
[332096649,1720959055620,-575.67,0.00027945,2]
[332096650,1720959055630,-500.0,0.00027945,2]
[332096651,1720959055639,-715.66,0.00027945,2]
[332096652,1720959055648,-4413.96,0.00027945,2]
[332096653,1720959055658,-1141.77,0.00027945,2]
[332096654,1720959055668,-500.0,0.00027945,2]
[332096655,1720959055678,-509.23,0.00027945,4]
[332096656,1720959055688,-500.0,0.00027945,2]
[332096657,1720959055697,-9077.84,0.00027945,2]
[332096658,1720959055707,-500.0,0.00027945,2]
[332096659,1720959055717,-500.0,0.00027945,2]
[332096660,1720959055726,-1369.79,0.00027945,2]
[332096661,1720959055736,-929.57278054,0.00027949,2]
[332096662,1720959055745,-156.0,0.0002795,13]
[332096663,1720959055755,-162.0,0.00027989,2]
[332096664,1720959055764,-23263.31408087,0.0002799,2]
[332096665,1720959055936,-483.68080341,0.00024657,2]
[332096690,1720959770450,5386.0,0.000225,30]
[332096695,1720959954140,-251.40019046,0.00018,2]
[332096696,1720959954161,-110.2478994,0.00019164,2]
[332096700,1720960033100,-435.347399,0.00021,2]
[332096701,1720960034249,-154.94951165,0.00019164,2]
[332096702,1720960034270,-199.0937684,0.00021,2]
[332096703,1720960036715,-127.5588326,0.00021,2]
[332096704,1720960036739,-80.52747969,0.00021096,2]
[332096705,1720960038105,-380.2269204,0.00021096,2]
[332096706,1720960039151,-240.77582091,0.00021096,2]
[332096707,1720960039179,-296.884242,0.00021096,2]
[332096708,1720960039204,-103.74220582,0.00022333,2]
[332096709,1720960050109,-265.22886034,0.00022333,2]
[332096710,1720960054097,-263.39429802,0.00022333,2]
[332096713,1720960148220,-197.44371632,0.000176,2]
[332096714,1720960150100,-52.55628368,0.000176,2]
[332096715,1720960152096,-196.84039408,0.0002,2]
[332096716,1720960152122,-150.0,0.000204,2]
[332096717,1720960152147,-502.18938768,0.00022333,2]